fUSD/lending_fUSD_20240429
["ID","MTS","AMOUNT","RATE_DAILY","PERIOD"]
[324866187,1714383044119,-500.0,0.00010958,2]
[324866189,1714383044128,-500.0,0.00010958,2]
[324866191,1714383044138,-500.0,0.00010958,2]
[324866193,1714383044149,-500.0,0.00010958,2]
[324866195,1714383044158,-500.0,0.00010958,2]
[324866197,1714383044169,-500.0,0.00010958,2]
[324866199,1714383044179,-500.0,0.00010958,2]
[324866201,1714383044188,-500.0,0.00010958,2]
[324866202,1714383044198,-500.0,0.00010958,2]
[324866203,1714383044208,-7746.08,0.00010958,2]
[324866204,1714383044220,-500.0,0.00010958,2]
[324866205,1714383044230,-500.0,0.00010958,2]
[324866206,1714383044240,-500.0,0.00010958,2]
[324866207,1714383044250,-500.0,0.00010958,2]
[324866208,1714383044260,-500.0,0.00010958,2]
[324866209,1714383044270,-500.0,0.00010958,2]
[324866210,1714383044280,-500.0,0.00010958,2]
[324866211,1714383044290,-500.0,0.00010958,2]
[324866212,1714383044299,-536.34,0.00010958,2]
[324866213,1714383044309,-500.0,0.00010958,2]
[324866214,1714383044318,-500.0,0.00010958,2]
[324866215,1714383044327,-502.55610837,0.00010958,2]
[324866216,1714383044337,-500.0,0.00010958,2]
[324866217,1714383044346,-500.0,0.00010958,2]
[324866218,1714383044356,-500.0,0.00010958,2]
[324866219,1714383044366,-500.0,0.00010958,2]
[324866220,1714383044376,-500.0,0.00010958,2]
[324866221,1714383044385,-500.0,0.00010958,2]
[324866222,1714383044394,-570.08,0.00010958,2]
[324866223,1714383044403,-504.63894909,0.00010958,2]
[324866224,1714383044413,-3823.16,0.00010958,2]
[324866225,1714383044423,-500.0,0.00010958,2]
[324866226,1714383044432,-500.0,0.00010958,2]
[324866227,1714383044442,-500.0,0.00010958,2]
[324866228,1714383044496,-501.74788891,0.00010958,2]
[324866229,1714383044505,-500.0,0.00010958,2]
[324866230,1714383044515,-1007.82587712,0.00010958,2]
[324866231,1714383044523,-500.4946796,0.00010958,2]
[324866232,1714383044533,-500.0,0.00010958,2]
[324866233,1714383044542,-500.0,0.00010958,2]
[324866234,1714383044563,-500.0,0.00010958,2]
[324866235,1714383044573,-500.0,0.00010958,2]
[324866236,1714383044582,-525.94145843,0.00010958,2]
[324866237,1714383044591,-588.33,0.00010958,2]
[324866238,1714383044600,-500.0,0.00010958,2]
[324866239,1714383044609,-500.0,0.00010958,2]
[324866240,1714383044619,-500.0,0.00010958,2]
[324866241,1714383044628,-500.0,0.00010958,2]
[324866242,1714383044637,-500.0,0.00010958,2]
[324866243,1714383044646,-500.0,0.00010958,2]
[324866244,1714383044655,-500.0,0.00010958,2]
[324866245,1714383044664,-718.39,0.00010958,2]
[324866246,1714383044673,-500.0,0.00010958,2]
[324866247,1714383044683,-505.50408928,0.00010958,2]
[324866248,1714383044691,-500.0,0.00010958,2]
[324866249,1714383044700,-500.0,0.00010958,2]
[324866250,1714383044709,-500.0,0.00010958,2]
[324866251,1714383044720,-530.31,0.00010958,2]
[324866252,1714383044729,-500.0,0.00010958,2]
[324866253,1714383044738,-500.0,0.00010958,2]
[324866254,1714383044747,-500.76115,0.00010958,2]
[324866255,1714383044757,-500.0,0.00010958,2]
[324866256,1714383044767,-507.1984282,0.00010958,2]
[324866257,1714383044777,-500.0,0.00010958,2]
[324866258,1714383044786,-500.0,0.00010958,2]
[324866259,1714383044795,-500.0,0.00010958,2]
[324866260,1714383044804,-500.0,0.00010958,2]
[324866261,1714383044813,-605.89302022,0.00010958,2]
[324866262,1714383044822,-287.03417683,0.00010958,2]
[324866263,1714383044831,-9880.54,0.00010958,2]
[324866264,1714383044841,-500.0,0.00010958,2]
[324866265,1714383044850,-500.0,0.00010958,2]
[324866266,1714383044859,-500.0,0.00010958,2]
[324866267,1714383044867,-500.0,0.00010958,2]
[324866268,1714383044876,-500.0,0.00010958,2]
[324866269,1714383044885,-500.0,0.00010958,2]
[324866270,1714383044894,-500.0,0.00010958,2]
[324866271,1714383044903,-500.0,0.00010958,2]
[324866272,1714383044912,-500.0,0.00010958,2]
[324866273,1714383044925,-500.0,0.00010958,2]
[324866274,1714383044934,-469.72174561,0.00010958,2]
[324866275,1714383044943,-500.0,0.00010958,2]
[324866276,1714383044952,-635.17,0.00010958,2]
[324866277,1714383044964,-500.0,0.00010958,2]
[324866278,1714383044976,-500.0,0.00010958,2]
[324866279,1714383044985,-500.0,0.00010958,2]
[324866280,1714383044996,-501.88370594,0.00010958,2]
[324866281,1714383045006,-500.0,0.00010958,2]
[324866282,1714383045015,-500.0,0.00010958,2]
[324866283,1714383045024,-500.0,0.00010958,2]
[324866284,1714383045034,-527.89,0.00010958,2]
[324866285,1714383045043,-167.66,0.00010958,2]
[324866286,1714383045052,-500.0,0.00010958,2]
[324866287,1714383045061,-500.0,0.00010958,2]
[324866288,1714383045071,-500.0,0.00010958,2]
[324866289,1714383045080,-500.0,0.00010958,2]
[324866290,1714383045089,-500.0,0.00010958,2]
[324866291,1714383045099,-501.16952848,0.00010958,2]
[324866292,1714383045108,-502.01225892,0.00010958,2]
[324866293,1714383045117,-332.1047957,0.00010958,2]
[324866294,1714383045127,-500.0,0.00010958,2]
[324866295,1714383045136,-500.0,0.00010958,2]
[324866296,1714383045145,-500.0,0.00010958,2]
[324866297,1714383045154,-511.81874023,0.00010958,2]
[324866298,1714383045164,-500.0,0.00010958,2]
[324866299,1714383045173,-1457.29,0.00010958,2]
[324866300,1714383045183,-500.0,0.00010958,2]
[324866301,1714383045193,-500.0,0.00010958,2]
[324866302,1714383045202,-781.85,0.00010958,2]
[324866303,1714383045212,-500.0,0.00010958,2]
[324866304,1714383045224,-500.0,0.00010958,2]
[324866305,1714383045233,-500.0,0.00010958,2]
[324866306,1714383045243,-500.0,0.00010958,2]
[324866307,1714383045252,-500.87895673,0.00010958,2]
[324866308,1714383045262,-604.98,0.00010958,2]
[324866309,1714383045271,-501.80723127,0.00010958,2]
[324866310,1714383045281,-500.0,0.00010958,2]
[324866311,1714383045290,-500.0,0.00010958,2]
[324866312,1714383045299,-973.23,0.00010958,2]
[324866313,1714383045309,-500.0,0.00010958,2]
[324866314,1714383045318,-1098.2,0.00010958,2]
[324866315,1714383045327,-500.0,0.00010958,2]
[324866316,1714383045336,-500.0,0.00010958,2]
[324866317,1714383045346,-500.74452117,0.00010958,2]
[324866318,1714383045355,-500.0,0.00010958,2]
[324866319,1714383045364,-500.0,0.00010958,2]
[324866320,1714383045374,-501.32562402,0.00010958,2]
[324866321,1714383045383,-9775.91,0.00010958,2]
[324866322,1714383045392,-500.0,0.00010958,2]
[324866323,1714383045401,-500.0,0.00010958,2]
[324866324,1714383045411,-501.23094271,0.00010958,2]
[324866325,1714383045420,-500.0,0.00010958,2]
[324866326,1714383045429,-500.0,0.00010958,2]
[324866327,1714383045439,-500.0,0.00010958,2]
[324866328,1714383045448,-232.31975614,0.00010958,2]
[324866329,1714383045457,-500.0,0.00010958,2]
[324866330,1714383045467,-500.0,0.00010958,2]
[324866331,1714383045478,-502.31439018,0.00010958,2]
[324866332,1714383045488,-330.92794735,0.00010958,2]
[324866333,1714383045497,-935.78,0.00010958,2]
[324866334,1714383045506,-266.00705488,0.00010958,2]
[324866335,1714383045516,-500.0,0.00010958,2]
[324866336,1714383045525,-500.0,0.00010958,2]
[324866337,1714383045534,-500.0,0.00010958,2]
[324866338,1714383045544,-500.0,0.00010958,2]
[324866339,1714383045553,-500.0,0.00010958,2]
[324866340,1714383045562,-500.0,0.00010958,2]
[324866342,1714383045572,-500.0,0.00010958,2]
[324866344,1714383045581,-500.0,0.00010958,2]
[324866346,1714383045591,-500.0,0.00010958,2]
[324866347,1714383045601,-500.0,0.00010958,2]
[324866348,1714383045610,-500.0,0.00010958,2]
[324866349,1714383045619,-500.0,0.00010958,2]
[324866350,1714383045628,-501.91327682,0.00010958,2]
[324866351,1714383045638,-500.0,0.00010958,2]
[324866352,1714383045647,-500.0,0.00010958,2]
[324866353,1714383045656,-500.0,0.00010958,2]
[324866354,1714383045665,-500.67569267,0.00010958,2]
[324866355,1714383045674,-500.0,0.00010958,2]
[324866356,1714383045683,-500.0,0.00010958,2]
[324866357,1714383045692,-625.92,0.00010958,2]
[324866358,1714383045701,-500.0,0.00010958,2]
[324866359,1714383045710,-500.0,0.00010958,2]
[324866360,1714383045720,-500.0,0.00010958,2]
[324866361,1714383045729,-500.0,0.00010958,2]
[324866362,1714383045738,-500.0,0.00010958,2]
[324866363,1714383045747,-1868.4,0.00010958,2]
[324866364,1714383045756,-500.46663875,0.00010958,2]
[324866365,1714383045765,-3931.33,0.00010958,2]
[324866366,1714383045774,-528.66,0.00010958,2]
[324866367,1714383045784,-500.0,0.00010958,2]
[324866368,1714383045794,-500.0,0.00010958,2]
[324866369,1714383045803,-500.0,0.00010958,2]
[324866370,1714383045812,-500.0,0.00010958,2]
[324866371,1714383045822,-589.63,0.00010958,2]
[324866372,1714383045831,-500.0,0.00010958,2]
[324866373,1714383045841,-500.0,0.00010958,2]
[324866374,1714383045850,-500.0,0.00010958,2]
[324866375,1714383045859,-500.0,0.00010958,2]
[324866376,1714383045868,-500.0,0.00010958,2]
[324866377,1714383045878,-500.0,0.00010958,2]
[324866378,1714383045888,-500.0,0.00010958,2]
[324866379,1714383045898,-500.0,0.00010958,2]
[324866380,1714383045907,-500.0,0.00010958,2]
[324866381,1714383045920,-500.0,0.00010958,2]
[324866382,1714383045930,-500.0,0.00010958,2]
[324866383,1714383045939,-500.0,0.00010958,2]
[324866384,1714383045948,-500.0,0.00010958,2]
[324866385,1714383045958,-506.0391659,0.00010958,2]
[324866386,1714383045968,-500.0,0.00010958,2]
[324866387,1714383045978,-500.0,0.00010958,2]
[324866388,1714383045987,-500.0,0.00010958,2]
[324866389,1714383045999,-502.12221303,0.00010958,2]
[324866390,1714383046010,-500.0,0.00010958,2]
[324866391,1714383046019,-500.0,0.00010958,2]
[324866392,1714383046029,-500.0,0.00010958,2]
[324866393,1714383046039,-500.0,0.00010958,2]
[324866394,1714383046048,-527.83,0.00010958,2]
[324866395,1714383046059,-500.0,0.00010958,2]
[324866396,1714383046069,-500.0,0.00010958,2]
[324866397,1714383046079,-500.0,0.00010958,2]
[324866398,1714383046088,-500.0,0.00010958,2]
[324866399,1714383046098,-500.0,0.00010958,2]
[324866400,1714383046108,-1355.1,0.00010958,2]
[324866401,1714383046118,-594.00656389,0.00010958,2]
[324866402,1714383046128,-500.0,0.00010958,2]
[324866403,1714383046137,-909.97,0.00010958,2]
[324866404,1714383046147,-381.66100428,0.00010958,2]
[324866405,1714383046156,-500.0,0.00010958,2]
[324866406,1714383046166,-500.0,0.00010958,2]
[324866407,1714383046176,-500.0,0.00010958,2]
[324866408,1714383046186,-1359.97,0.00010958,2]
[324866409,1714383046196,-736.29,0.00010958,2]
[324866410,1714383046205,-500.0,0.00010958,2]
[324866411,1714383046214,-504.01727395,0.00010958,2]
[324866412,1714383046226,-500.0,0.00010958,2]
[324866413,1714383046236,-506.41831689,0.00010958,2]
[324866414,1714383046246,-500.0,0.00010958,2]
[324866415,1714383046255,-500.0,0.00010958,2]
[324866416,1714383046264,-500.0,0.00010958,2]
[324866418,1714383046274,-224.42672402,0.00010958,2]
[324866420,1714383046284,-500.0,0.00010958,2]
[324866421,1714383046293,-501.22696699,0.00010958,2]
[324866422,1714383046302,-500.0,0.00010958,2]
[324866423,1714383046311,-504.61842249,0.00010958,2]
[324866424,1714383046321,-500.0,0.00010958,2]
[324866425,1714383046330,-500.0,0.00010958,2]
[324866426,1714383046340,-574.23298669,0.00010958,2]
[324866427,1714383046349,-500.0,0.00010958,2]
[324866428,1714383046358,-1170.5,0.00010958,2]
[324866429,1714383046367,-1606.32,0.00010958,2]
[324866430,1714383046377,-500.0,0.00010958,2]
[324866431,1714383046386,-500.0,0.00010958,2]
[324866432,1714383046395,-710.61,0.00010958,2]
[324866433,1714383046404,-500.0,0.00010958,2]
[324866434,1714383046413,-500.0,0.00010958,2]
[324866435,1714383046423,-502.07375346,0.00010958,2]
[324866436,1714383046433,-500.0,0.00010958,2]
[324866437,1714383046442,-500.0,0.00010958,2]
[324866438,1714383046452,-500.0,0.00010958,2]
[324866439,1714383046461,-500.0,0.00010958,2]
[324866440,1714383046473,-501.18822421,0.00010958,2]
[324866441,1714383046483,-500.0,0.00010958,2]
[324866442,1714383046492,-500.0,0.00010958,2]
[324866443,1714383046502,-302.79302114,0.00010958,2]
[324866444,1714383046511,-1502.6,0.00010958,2]
[324866445,1714383046520,-500.0,0.00010958,2]
[324866446,1714383046529,-500.0,0.00010958,2]
[324866447,1714383046539,-500.0,0.00010958,2]
[324866448,1714383046548,-500.0,0.00010958,2]
[324866449,1714383046558,-500.0,0.00010958,2]
[324866450,1714383046567,-500.0,0.00010958,2]
[324866451,1714383046576,-500.0,0.00010958,2]
[324866452,1714383046586,-500.0,0.00010958,2]
[324866453,1714383046596,-500.0,0.00010958,2]
[324866454,1714383046605,-500.0,0.00010958,2]
[324866455,1714383046614,-500.0,0.00010958,2]
[324866456,1714383046624,-500.0,0.00010958,2]
[324866457,1714383046633,-500.0,0.00010958,2]
[324866458,1714383046643,-2577.29,0.00010958,2]
[324866459,1714383046653,-500.0,0.00010958,2]
[324866460,1714383046663,-634.66,0.00010958,2]
[324866461,1714383046672,-500.0,0.00010958,2]
[324866462,1714383046683,-500.0,0.00010958,2]
[324866463,1714383046692,-500.0,0.00010958,2]
[324866464,1714383046702,-500.0,0.00010958,2]
[324866465,1714383046711,-500.0,0.00010958,2]
[324866466,1714383046720,-453.71221967,0.00010958,2]
[324866467,1714383046730,-831.39,0.00010958,2]
[324866468,1714383046740,-500.0,0.00010958,2]
[324866469,1714383046750,-600.46,0.00010958,2]
[324866470,1714383046759,-759.67,0.00010958,2]
[324866471,1714383046769,-500.0,0.00010958,2]
[324866472,1714383046779,-649.92,0.00010958,2]
[324866473,1714383046788,-500.0,0.00010958,2]
[324866474,1714383046798,-500.0,0.00010958,2]
[324866475,1714383046808,-500.0,0.00010958,2]
[324866476,1714383046819,-500.0,0.00010958,2]
[324866477,1714383046829,-500.0,0.00010958,2]
[324866478,1714383046838,-500.0,0.00010958,2]
[324866479,1714383046848,-500.0,0.00010958,2]
[324866480,1714383046857,-500.0,0.00010958,2]
[324866481,1714383046866,-500.0,0.00010958,2]
[324866482,1714383046876,-500.0,0.00010958,2]
[324866483,1714383046885,-500.0,0.00010958,2]
[324866484,1714383046895,-8340.65,0.00010958,2]
[324866485,1714383046904,-716.4,0.00010958,2]
[324866486,1714383046915,-500.0,0.00010958,2]
[324866487,1714383046926,-500.0,0.00010958,2]
[324866488,1714383046935,-500.0,0.00010958,2]
[324866489,1714383046945,-1431.64,0.00010958,2]
[324866490,1714383046955,-1056.97,0.00010958,2]
[324866491,1714383046965,-771.03,0.00010958,2]
[324866492,1714383046976,-500.0,0.00010958,2]
[324866493,1714383046985,-500.0,0.00010958,2]
[324866494,1714383046997,-506.54140424,0.00010958,2]
[324866495,1714383047007,-500.0,0.00010958,2]
[324866496,1714383047017,-500.0,0.00010958,2]
[324866497,1714383047026,-681.64,0.00010958,2]
[324866498,1714383047036,-500.0,0.00010958,2]
[324866499,1714383047047,-500.0,0.00010958,2]
[324866500,1714383047057,-500.0,0.00010958,2]
[324866501,1714383047067,-500.0,0.00010958,2]
[324866502,1714383047077,-500.33839394,0.00010958,2]
[324866503,1714383047087,-500.0,0.00010958,2]
[324866504,1714383047096,-500.0,0.00010958,2]
[324866505,1714383047106,-500.0,0.00010958,2]
[324866506,1714383047116,-1320.35,0.00010958,2]
[324866507,1714383047125,-500.0,0.00010958,2]
[324866508,1714383047135,-500.0,0.00010958,2]
[324866509,1714383047145,-500.0,0.00010958,2]
[324866510,1714383047154,-510.12731504,0.00010958,2]
[324866511,1714383047164,-504.9880671,0.00010958,2]
[324866512,1714383047174,-500.0,0.00010958,2]
[324866513,1714383047183,-500.0,0.00010958,2]
[324866514,1714383047192,-500.0,0.00010958,2]
[324866515,1714383047202,-3140.0,0.00010958,2]
[324866516,1714383047213,-500.0,0.00010958,2]
[324866517,1714383047223,-1775.35,0.00010958,2]
[324866518,1714383047234,-500.0,0.00010958,2]
[324866519,1714383047244,-501.88664303,0.00010958,2]
[324866520,1714383047254,-500.0,0.00010958,2]
[324866521,1714383047264,-228.96012191,0.00010958,2]
[324866522,1714383047274,-500.64805324,0.00010958,2]
[324866523,1714383047284,-500.0,0.00010958,2]
[324866524,1714383047294,-500.0,0.00010958,2]
[324866525,1714383047304,-500.0,0.00010958,2]
[324866526,1714383047314,-854.83,0.00010958,2]
[324866527,1714383047323,-500.0,0.00010958,2]
[324866528,1714383047333,-500.0,0.00010958,2]
[324866529,1714383047344,-502.81744494,0.00010958,2]
[324866530,1714383047354,-500.0,0.00010958,2]
[324866531,1714383047364,-500.0,0.00010958,2]
[324866532,1714383047373,-500.41870431,0.00010958,2]
[324866533,1714383047383,-500.0,0.00010958,2]
[324866534,1714383047393,-500.0,0.00010958,2]
[324866535,1714383047403,-500.0,0.00010958,2]
[324866536,1714383047412,-500.0,0.00010958,2]
[324866537,1714383047422,-500.0,0.00010958,2]
[324866538,1714383047432,-500.0,0.00010958,2]
[324866539,1714383047442,-500.0,0.00010958,2]
[324866540,1714383047451,-500.0,0.00010958,2]
[324866541,1714383047462,-500.0,0.00010958,2]
[324866542,1714383047478,-500.0,0.00010958,2]
[324866543,1714383047498,-500.0,0.00010958,2]
[324866544,1714383047508,-500.0,0.00010958,2]
[324866545,1714383047517,-500.0,0.00010958,2]
[324866546,1714383047527,-500.0,0.00010958,2]
[324866547,1714383047536,-261.33901511,0.00010958,2]
[324866548,1714383047546,-500.0,0.00010958,2]
[324866549,1714383047555,-500.0,0.00010958,2]
[324866550,1714383047565,-500.0,0.00010958,2]
[324866551,1714383047575,-500.0,0.00010958,2]
[324866552,1714383047584,-500.32834165,0.00010958,2]
[324866553,1714383047594,-500.0,0.00010958,2]
[324866554,1714383047603,-502.97778467,0.00010958,2]
[324866555,1714383047613,-500.0,0.00010958,2]
[324866556,1714383047622,-1642.24,0.00010958,2]
[324866557,1714383047632,-500.0,0.00010958,2]
[324866558,1714383047641,-522.24,0.00010958,2]
[324866559,1714383047651,-500.0,0.00010958,2]
[324866560,1714383047660,-509.76036062,0.00010958,2]
[324866561,1714383047670,-500.0,0.00010958,2]
[324866562,1714383047680,-517.02,0.00010958,2]
[324866563,1714383047690,-500.0,0.00010958,2]
[324866564,1714383047699,-500.0,0.00010958,2]
[324866565,1714383047709,-500.0,0.00010958,2]
[324866566,1714383047718,-500.0,0.00010958,2]
[324866567,1714383047729,-500.0,0.00010958,2]
[324866568,1714383047739,-500.0,0.00010958,2]
[324866569,1714383047748,-503.11428598,0.00010958,2]
[324866570,1714383047758,-500.0,0.00010958,2]
[324866571,1714383047767,-643.08,0.00010958,2]
[324866572,1714383047777,-500.0,0.00010958,2]
[324866573,1714383047787,-500.0,0.00010958,2]
[324866574,1714383047796,-503.52402664,0.00010958,2]
[324866575,1714383047806,-502.77376968,0.00010958,2]
[324866576,1714383047816,-717.26,0.00010958,2]
[324866577,1714383047826,-500.0,0.00010958,2]
[324866578,1714383047836,-500.0,0.00010958,2]
[324866579,1714383047845,-500.0,0.00010958,2]
[324866580,1714383047857,-500.0,0.00010958,2]
[324866581,1714383047867,-500.0,0.00010958,2]
[324866582,1714383047879,-500.0,0.00010958,2]
[324866583,1714383047888,-500.0,0.00010958,2]
[324866584,1714383047898,-500.0,0.00010958,2]
[324866585,1714383047908,-500.0,0.00010958,2]
[324866586,1714383047922,-504.71040092,0.00010958,2]
[324866587,1714383047932,-500.0,0.00010958,2]
[324866588,1714383047941,-520.66267846,0.00010958,2]
[324866589,1714383047951,-500.0,0.00010958,2]
[324866590,1714383047962,-500.0,0.00010958,2]
[324866591,1714383048118,-500.0,0.00010958,2]
[324866592,1714383048128,-500.0,0.00010958,2]
[324866593,1714383048138,-500.0,0.00010958,2]
[324866594,1714383048147,-500.0,0.00010958,2]
[324866595,1714383048156,-500.34397463,0.00010958,2]
[324866596,1714383048166,-500.0,0.00010958,2]
[324866597,1714383048175,-500.0,0.00010958,2]
[324866598,1714383048184,-500.95144381,0.00010958,2]
[324866599,1714383048193,-500.0,0.00010958,2]
[324866600,1714383048203,-264.27084197,0.00010958,2]
[324866601,1714383048212,-500.0,0.00010958,2]
[324866602,1714383048222,-500.0,0.00010958,2]
[324866603,1714383048231,-506.76638898,0.00010958,2]
[324866604,1714383048240,-500.0,0.00010958,2]
[324866605,1714383048250,-500.0,0.00010958,2]
[324866606,1714383048259,-1563.05,0.00010958,2]
[324866607,1714383048269,-500.0,0.00010958,2]
[324866608,1714383048278,-500.0,0.00010958,2]
[324866609,1714383048288,-500.0,0.00010958,2]
[324866610,1714383048297,-500.0,0.00010958,2]
[324866611,1714383048306,-500.0,0.00010958,2]
[324866612,1714383048316,-1217.65,0.00010958,2]
[324866613,1714383048325,-500.0,0.00010958,2]
[324866614,1714383048335,-503.64555894,0.00010958,2]
[324866615,1714383048344,-500.0,0.00010958,2]
[324866616,1714383048353,-500.0,0.00010958,2]
[324866617,1714383048362,-150.0,0.00010959,2]
[324866618,1714383048371,-150.0,0.00010959,2]
[324866619,1714383048381,-156.36,0.0001096,2]
[324866620,1714383048390,-279.421698,0.00010995,2]
[324866621,1714383048399,-2450.0,0.00011,3]
[324866622,1714383048408,-586.50860375,0.00011042,2]
[324866623,1714383048418,-155.0,0.00011043,2]
[324866624,1714383048427,-535.03427358,0.00011119,2]
[324866625,1714383048436,-258.11,0.00011126,2]
[324866626,1714383048446,-170.89694307,0.00011132,2]
[324866627,1714383048456,-279.421698,0.00011132,2]
[324866628,1714383048466,-500.0,0.00011231,2]
[324866629,1714383048475,-485.28690856,0.00011232,2]
[324866630,1714383048484,-500.0,0.00011232,2]
[324866631,1714383048493,-500.0,0.00011232,2]
[324866632,1714383048502,-500.0,0.00011232,2]
[324866633,1714383048512,-500.0,0.00011232,2]
[324866634,1714383048521,-500.0,0.00011232,2]
[324866635,1714383048530,-500.0,0.00011232,2]
[324866636,1714383048539,-500.0,0.00011232,2]
[324866637,1714383048549,-500.0,0.00011232,2]
[324866638,1714383048558,-222.39790518,0.00011232,2]
[324866639,1714383048568,-646.2,0.00011232,2]
[324866640,1714383048577,-500.0,0.00011232,2]
[324866641,1714383048587,-582.07,0.00011232,2]
[324866642,1714383048595,-500.0,0.00011232,2]
[324866643,1714383048604,-500.0,0.00011232,2]
[324866644,1714383048613,-500.0,0.00011232,2]
[324866645,1714383048622,-502.54613161,0.00011232,2]
[324866646,1714383048631,-500.0,0.00011232,2]
[324866647,1714383048640,-500.0,0.00011232,2]
[324866648,1714383048650,-500.0,0.00011232,2]
[324866649,1714383048659,-500.0,0.00011232,2]
[324866650,1714383048668,-500.0,0.00011232,2]
[324866651,1714383048677,-500.0,0.00011232,2]
[324866652,1714383048686,-500.0,0.00011232,2]
[324866653,1714383048695,-500.0,0.00011232,2]
[324866654,1714383048704,-500.0,0.00011232,2]
[324866655,1714383048713,-289.92194683,0.00011232,2]
[324866656,1714383048723,-500.0,0.00011232,2]
[324866657,1714383048731,-500.0,0.00011232,2]
[324866658,1714383048740,-521.25252691,0.00011232,2]
[324866659,1714383048750,-500.0,0.00011232,2]
[324866660,1714383048759,-508.10728122,0.00011232,2]
[324866661,1714383048768,-500.0,0.00011232,2]
[324866662,1714383048777,-452.35164571,0.00011232,2]
[324866663,1714383048786,-500.0,0.00011232,2]
[324866664,1714383048795,-509.7756241,0.00011232,2]
[324866665,1714383048804,-500.0,0.00011232,2]
[324866666,1714383048813,-500.0,0.00011232,2]
[324866667,1714383048823,-500.0,0.00011232,2]
[324866668,1714383048832,-500.0,0.00011232,2]
[324866669,1714383048842,-505.39812621,0.00011232,2]
[324866670,1714383048851,-500.0,0.00011232,2]
[324866671,1714383048861,-500.0,0.00011232,2]
[324866672,1714383048870,-508.53133797,0.00011232,2]
[324866673,1714383048879,-505.72930736,0.00011232,2]
[324866674,1714383048888,-241.32518996,0.00011232,2]
[324866675,1714383048897,-505.94316916,0.00011232,2]
[324866676,1714383048907,-516.1446043,0.00011232,2]
[324866677,1714383048918,-510.41614816,0.00011232,2]
[324866678,1714383048927,-502.92510843,0.00011232,2]
[324866679,1714383048937,-593.0267663,0.00011232,2]
[324866680,1714383048946,-503.24,0.00011232,2]
[324866681,1714383048956,-151.76491221,0.00011232,2]
[324866682,1714383048966,-525.68435171,0.00011232,2]
[324866683,1714383048976,-500.0,0.00011232,2]
[324866684,1714383048985,-500.0,0.00011232,2]
[324866685,1714383048995,-505.37911956,0.00011232,2]
[324866686,1714383049004,-511.01585666,0.00011232,2]
[324866687,1714383049015,-500.0,0.00011232,2]
[324866688,1714383049024,-500.0,0.00011232,2]
[324866689,1714383049033,-500.0,0.00011232,2]
[324866690,1714383049042,-503.52890566,0.00011232,2]
[324866691,1714383049052,-500.0,0.00011232,2]
[324866692,1714383049061,-504.71431476,0.00011232,2]
[324866693,1714383049071,-506.63614937,0.00011232,2]
[324866694,1714383049080,-501.56556707,0.00011232,2]
[324866695,1714383049089,-500.0,0.00011232,2]
[324866696,1714383049098,-500.0,0.00011232,2]
[324866697,1714383049107,-500.0,0.00011232,2]
[324866698,1714383049116,-500.0,0.00011232,2]